Cogmind - Beta 16 @@@ ROGUE MODE // 2025.11.03 @ 12:34:24 Player: Cameron Result: Destroyed by IL-75U(R) with Subdweller Machine Gun Performance ------------- Evolutions (0) 0 Regions Visited (2) 400 Robots Destroyed (14) 70 Value Destroyed (277) 277 Prototype IDs (0) 0 Alien Tech Used (0) 0 Bonus (0) 0 TOTAL SCORE: 747 Bonus ------- None Cogmind --------- Core Integrity 0/250 Matter 221/300 Energy 250/250 System Corruption 1% Temperature Cool (0) Movement Rolling (130) Ox2 Location -10/Subcaves Parts ------- > --- POWER (1) -------- Ion Engine > --- PROPULSION (2) --- Subdweller Monowheel > --- UTILITY (2) ------ High-capacity Storage Unit Sensor Array > --- WEAPON (2) ------- Shotgun Heavy Hammer > --- INVENTORY (20) --- Ion Engine Subdweller Power Source Aluminum Leg Heat Sink Cooling System Cooling System Cooling System Medium Storage Unit High-capacity Storage Unit Machine Analyzer Subdweller Optics Sensor Array Subdweller Beam Cannon Subdweller Machine Gun Datajack Scrap Shield Fragment (41) Scrap Shield Fragment (39) Peak State ------------ > --- POWER ------------ Ion Engine > --- PROPULSION ------- Subdweller Monowheel Subdweller Monowheel > --- UTILITY ---------- Cooling System High-capacity Storage Unit > --- WEAPON ----------- Shotgun Heavy Hammer > --- INVENTORY -------- Ion Engine Subdweller Power Source Aluminum Leg Heat Sink Cooling System Cooling System Medium Storage Unit High-capacity Storage Unit Machine Analyzer Subdweller Optics Sensor Array Sensor Array Subdweller Beam Cannon Subdweller Machine Gun Datajack Scrap Shield Fragment Scrap Shield Fragment [Rating: 14] Favorites ----------- Power Ion Engine Engine Ion Engine Propulsion Aluminum Leg Leg Aluminum Leg Wheel Compact Wheel Utility Sensor Array Device Sensor Array Storage Medium Storage Unit Weapon Heavy EM Pulse Gun Energy Gun Heavy EM Pulse Gun Ballistic Gun Shotgun Impact Weapon Heavy Hammer Build | -11 -10 -10 ------- Run | Yrd Mat Sub Slots Evolved . | . . . Power . | . . . Propulsion . | . . . Utility . | . . . Weapon . | . . . Parts Attached 29 | 6 12 11 Power 4 | 1 1 2 Engine 4 | 1 1 2 Core . | . . . Reactor . | . . . Propulsion 9 | 2 2 5 Treads . | . . . Leg 5 | 2 . 3 Wheel 4 | . 2 2 Hover . | . . . Flight . | . . . Utility 7 | 1 4 2 Device 4 | . 2 2 Storage 3 | 1 2 . Processor . | . . . Hackware . | . . . Protection . | . . . Artifact . | . . . Weapon 9 | 2 5 2 Energy Gun 5 | 1 4 . Energy Cannon . | . . . Ballistic Gun 3 | 1 . 2 Ballistic Cannon . | . . . Launcher . | . . . Special Weapon . | . . . Impact Weapon 1 | . 1 . Slashing Weapon . | . . . Piercing Weapon . | . . . Special Melee Weapon . | . . . Unidentified Prototypes . | . . . Parts Lost 14 | . 3 11 Power 1 | . . 1 Propulsion 7 | . . 7 Utility 1 | . . 1 Weapon 5 | . 3 2 Highest Loss Streak 10 | . 1 10 To Critical Strikes . | . . . Average Backups 11 | 1 11 16 Power 1 | . 1 1 Propulsion 2 | . 2 2 Utility 5 | . 4 8 Weapon 2 | . 2 2 Tool/Special . | . . . Unused Backups 16 | . 2 14 Power 2 | . . 2 Propulsion . | . . . Utility 7 | . . 7 Weapon 6 | . 2 4 Tool/Special 1 | . . 1 Average Slot Usage (%) 97 | . 97 93 Engine 14 | . 14 14 Leg 18 | . 20 9 Wheel 8 | . 7 15 Device 13 | . 13 11 Storage 14 | . 14 14 Energy Gun 22 | . 25 4 Ballistic Gun 1 | . . 8 Impact Weapon 2 | . . 14 Peak Build Rating 14 | 6 11 14 Average Rating 10 | 4 10 10 On Entrance 5 | . 6 11 Avg Prop Armor Cover (%) 8 | . 8 9 Naked Turns . | . . . Heaviest Build 53 | 12 52 53 Greatest Support 40 | 20 26 40 Greatest Overweight (x) 5 | 3 3 5 Average Overweight (x) 1 | . . 1 Largest Inventory Capacity 20 | 8 20 20 Average Capacity 13 | 7 12 20 Most Carried 20 | 4 20 20 Average Carried 11 | 2 11 16 Final Capacity 20 | 8 20 20 Final Carried 20 | 3 20 17 Class Distribution -------------------- 100% | Mutant Dominant Class ---------------- Mutant | -10/Materials Mutant | -10/Subcaves Resources | -11 -10 -10 ----------- Run | Yrd Mat Sub Matter Collected 483 | 208 218 57 Remotely . | . . . Salvage Created 564 | . 549 15 Parts 32 | . 29 3 Haulers Intercepted 2 | . 2 . Recyclers Shooed 1 | . 1 . Parts Field Recycled . | . . . Retrieved Matter . | . . . Parts Self-Destructed . | . . . Prevented . | . . . Parts Restored . | . . . Kills | -11 -10 -10 ------- Run | Yrd Mat Sub Combat Hostiles Destroyed 8 | . 7 1 Guns 4 | . 3 1 AOE 3 | . 3 . Classes Destroyed 6 | . 5 1 Hauler 2 | . 2 . Recycler 2 | . 2 . Watcher 2 | . 2 . Swarmer 3 | . 3 . Grunt 4 | . 4 . Subdweller 1 | . . 1 Best Kill Streak 5 | . 5 1 Combat Bots Only 3 | . 3 1 Max Kills in Single Turn 2 | . 2 1 Gunslinging . | . . . Exploded 1 | . 1 . Melee . | . . . Uniques/NPCs Destroyed . | . . . Combat | -11 -10 -10 -------- Run | Yrd Mat Sub Hostile Shots Fired 66 | . 30 36 Missed 12 | . 3 9 Hits 54 | . 27 27 Projectile 54 | . 27 27 AOE 7 | . . 7 Critical Strikes 1 | . . 1 Damage Taken 1391 | . 424 967 Core 258 | . 120 138 Absorbed by Shields . | . . . Regen/Repaired (Parts) 12 | . 12 . Core Remaining (%) 100 | 100 . . Volleys Fired 31 | . 24 7 Largest 2 | . 2 1 Hottest 90 | . 90 23 Shots Fired 53 | . 46 7 Gun 53 | . 46 7 Cannon . | . . . Launcher . | . . . Special . | . . . Kinetic 7 | . . 7 Thermal . | . . . Explosive . | . . . Electromagnetic 46 | . 46 . Robot Hit Streak 8 | . 8 5 Robot Miss Streak 3 | . 3 2 Penetration Max . | . . . Secondary Targets 1 | . 1 . Max Gunslinging Chain 1 | . 1 . Shots Hit Robots 36 | . 29 7 Core Hits 18 | . 13 5 Critical Kills . | . . . Critical Parts Destroyed . | . . . Critical Strikes . | . . . Melee Attacks . | . . . Impact . | . . . Slashing . | . . . Piercing . | . . . Sneak Attacks . | . . . Combat Hostiles . | . . . Follow-up Attacks . | . . . Damage Inflicted 751 | . 652 99 Guns 536 | . 437 99 Cannons . | . . . Explosions 207 | . 207 . Melee . | . . . Ramming 8 | . 8 . Kinetic 99 | . . 99 Thermal 207 | . 207 . Explosive . | . . . Electromagnetic 437 | . 437 . Impact . | . . . Slashing . | . . . Piercing . | . . . Highest Corruption 1 | . 1 1 Average Corruption 1 | . 1 1 Corruption Purged . | . . . Corruption Blocked . | . . . Effects 6 | . 3 3 Message Errors 2 | . 2 . Matter Fused 3 | . 1 2 Energy Discharges 1 | . . 1 Overload Shots . | . . . Overflow Damage 45 | . 45 . Projectiles . | . . . Explosions 45 | . 45 . Melee . | . . . Knockbacks . | . . . Impact . | . . . Kinetic . | . . . Secondary . | . . . Self-Inflicted Damage 137 | . 137 . Shots 4 | . 4 . Rammed 1 | . 1 . Targets Rammed 1 | . 1 . Kicked . | . . . Crushed . | . . . Highest Temperature 168 | . 168 . Average Temperature 70 | . 70 . Received Heat Transfer 90 | . 90 . Siege Activations . | . . . Martial Activations . | . . . Shielding Activations . | . . . Robots Disrupted . | . . . Combat Hostiles . | . . . Robots Corrupted 1 | . 1 . Combat Hostiles 1 | . 1 . Parts Fried 2 | . 2 . Impact Corruptions . | . . . Robots Melted . | . . . Combat Hostiles . | . . . Parts Melted . | . . . Heat Transferred 300 | . 300 . Parts Sabotaged . | . . . Parts Stolen . | . . . Parts Stripped . | . . . Power Chain Reactions 5 | . 5 . Alert | -11 -10 -10 ------- Run | Yrd Mat Sub Maximum Alert Level . | . . . Low Security (%) 100 | 100 100 . Level 1 . | . . . Level 2 . | . . . Level 3 . | . . . Level 4 . | . . . Level 5 . | . . . High Security . | . . . Max Security . | . . . Peak Influence 177 | . 177 . Initial . | . . . Average 28 | . 29 . Influence Increases 374 | . 374 . Destroy 0b10 Robot/C 140 | . 140 . Destroy 0b10 Robot/NC 30 | . 30 . Destroy Leader 38 | . 38 . Successful Hack 39 | . 39 . Disable Machine 15 | . 15 . Destroy Structure 22 | . 22 . Lose Combat Pursuer 90 | . 90 . Influence Decreases 374 | . 231 143 Entered New Map 70 | . . 70 Time Decay 251 | . 201 50 Lost Part 53 | . 30 23 Squads Dispatched 1 | . 1 . Investigation 1 | . 1 . Extermination . | . . . Reinforcement . | . . . Assault . | . . . Garrison . | . . . Intercept . | . . . Searches Triggered . | . . . Construction Impeded . | . . . Haulers Reinforced . | . . . Active Scanning Responses . | . . . Cargo Convoy Interrupts . | . . . Stealth | -11 -10 -10 --------- Run | Yrd Mat Sub Distress Signals . | . . . Communications Jammed . | . . . Distress Signals . | . . . Times Spotted 19 | . 15 4 Peak Tracking Total 5 | . 5 2 Tactical Retreats 3 | . 3 . Traps | -11 -10 -10 ------- Run | Yrd Mat Sub Traps Triggered 6 | . 4 2 Indirectly . | . . . Trap Hack Attempts . | . . . Triggered . | . . . Disarmed . | . . . Reprogrammed . | . . . Reused . | . . . Traps Extracted . | . . . Installed . | . . . Triggered . | . . . Machines | -11 -10 -10 ---------- Run | Yrd Mat Sub Machines Disabled 1 | . 1 . Max in Single Turn 1 | . 1 . Machines Repaired . | . . . Machines Dismantled . | . . . Machines Sabotaged . | . . . Overloaded Fab Kills . | . . . Hacking | -11 -10 -10 --------- Run | Yrd Mat Sub Machines Accessed 8 | . 8 . Terminals 7 | . 7 . Fabricators . | . . . Repair Stations 1 | . 1 . Recycling Units . | . . . Scanalyzers . | . . . Garrison Access . | . . . Total Hacks 20 | . 20 . Successful 7 | . 7 . Failed 13 | . 13 . Catastrophic 5 | . 5 . Database Lockouts . | . . . Manual 7 | . 7 . Terminals 18 | . 18 . Fabricators . | . . . Repair Stations 2 | . 2 . Recycling Units . | . . . Scanalyzers . | . . . Garrison Access . | . . . Terminal Hacks 5 | . 5 . Branch Access Points 1 | . 1 . Repair Station Index 1 | . 1 . Locate Traps 1 | . 1 . Hauler Manifests 1 | . 1 . Zone Layout 1 | . 1 . Fabricator Hacks . | . . . Repair Station Hacks 2 | . 2 . Scan Component 1 | . 1 . Repair 1 | . 1 . Recycling Unit Hacks . | . . . Scanalyzer . | . . . Garrison Access Hacks . | . . . Unauthorized Hacks . | . . . Terminals . | . . . Fabricators . | . . . Repair Stations . | . . . Recycling Units . | . . . Scanalyzers . | . . . Garrison Access . | . . . Data Cores Recovered . | . . . Used . | . . . Hacking Detections 7 | . 7 . Full Trace Events 3 | . 3 . Feedback Events . | . . . Feedback Blocked . | . . . Robot Schematics Acquired . | . . . Robots Built . | . . . Authchips . | . . . Time . | . . . Total Robot Build Rating . | . . . Part Schematics Acquired . | . . . Parts Built . | . . . Authchips . | . . . Time . | . . . Total Part Build Rating . | . . . Part Studies Acquired . | . . . Parts Repaired 1 | . 1 . Time 26 | . 26 . Parts Recycled . | . . . Recycled Matter . | . . . Retrieved Matter . | . . . Retrieved Components . | . . . Parts Scanalyzed . | . . . Part Schematics Acquired . | . . . Parts Damaged . | . . . Bothacking | -11 -10 -10 ------------ Run | Yrd Mat Sub Used RIF Installer . | . . . Robots Hacked . | . . . Non-combat . | . . . Combat . | . . . Robot Hacks Applied . | . . . Relay Couplers Released . | . . . Fabnet Peak Effective % . | . . . Robots Rewired . | . . . Allies Hacked . | . . . Hacks Repelled . | . . . Allies | -11 -10 -10 -------- Run | Yrd Mat Sub Total Allies . | . . . Largest Group . | . . . Highest-Rated Group . | . . . Highest-Rated Ally . | . . . Total Orders . | . . . Ally Attacks . | . . . Total Damage . | . . . Kills . | . . . Allies Corrupted . | . . . Allies Melted . | . . . Intel | -11 -10 -10 ------- Run | Yrd Mat Sub Active Infowar (turns) 975 | . 791 184 Sensors 975 | . 791 184 Robot Analysis Total . | . . . Derelict Logs Recovered 1 | . . 1 Drone Launches . | . . . Drone Recoveries . | . . . Exploration | -11 -10 -10 ------------- Run | Yrd Mat Sub Turns Passed 1608 | 59 1292 257 Spaces Moved 897 | 39 740 118 Core 6 | 6 . . Treads . | . . . Legs 530 | 33 474 23 Wheels 361 | . 266 95 Hover . | . . . Flight . | . . . Fastest Speed 50 | 50 105 105 Average Speed 150 | 120 151 152 Slowest Speed 470 | 200 190 470 Overloaded Moves . | . . . Propulsion Burnouts . | . . . Robots Hopped . | . . . Potential Cave-ins . | . . . Cave-ins Triggered . | . . . Exploration Rate (%) 37 | 3 97 11 Regions Visited 2 Branch Regions 1 Pre-discovered Areas . | . . . Known Exits Taken . | . . . Unknown Exits Taken 2 | 1 1 . Scrap Searched . | . . . Spaces Dug . | . . . Terrain Destroyed 21 | . 21 . Melee . | . . . Projectile . | . . . AOE 21 | . 21 . Terrain Rammed . | . . . Walls Destroyed . | . . . Machines Disabled . | . . . Actions | -11 -10 -10 --------- Run | Yrd Mat Sub Total 1101 | 48 868 185 Wait 86 | . 50 36 Move 895 | 38 739 118 Hop . | . . . Pick Up 36 | 4 25 7 Fast Attach 13 | 5 7 1 Attach 13 | 1 3 9 Detach . | . . . Swap 12 | . 8 4 Drop 14 | . 11 3 Fire 31 | . 24 7 Melee . | . . . Ram 1 | . 1 . Kick . | . . . Crush . | . . . Escape Stasis . | . . . Rewire . | . . . Trap . | . . . Miscellaneous . | . . . Route ------- -11/Scrapyard -10/Materials (discovered 5 exits: [*Mat x3] / *Min / [*Sub]) -10/Subcaves History --------- Turn | Location | Event 23 | -11/Scrapyard | Discovered new exit (range 15) 60 | -11/Scrapyard | Entered Materials 69 | -10/Materials | Discovered new exit (range 16) 74 | -10/Materials | Identified exit to Mines 312 | -10/Materials | Build established: Mutant 490 | -10/Materials | Discovered new exit (range 5) 603 | -10/Materials | Repaired Aluminum Leg 699 | -10/Materials | Discovered new exit (range 5) 1209 | -10/Materials | Discovered new exit (range 14) 1348 | -10/Materials | Discovered new exit (range 5) 1352 | -10/Materials | Entered Subcaves 1353 | -10/Subcaves | Approached by a straggling Scientist 1354 | -10/Subcaves | Shifting Twisted Machinery released Sub. Machine Gun 1456 | -10/Subcaves | Core integrity fell below 50% 1507 | -10/Subcaves | Core integrity fell below 20% 1552 | -10/Subcaves | Lost 10 parts (1p6n1u2w) 1609 | -10/Subcaves | Destroyed by IL-75U(R) with Subdweller Machine Gun Last Messages --------------- 01508_ Acquired Sub. Beam Cannon. 01512_ 8U-TEI(R) affixes Scrap Shield Fragment to Scrap Shield. 01513_ Sensor Array destroyed. 01515_ Subatomizers dissect the Sub. Monowheel. 01515_ 8U-TEI(R) destroyed. 01517_ Acquired 25 matter. 01520_ Acquired 15 matter. 01521_ Aluminum Leg destroyed. 01521_ LM-0LN(R) destroyed. 01525_ Subatomizers dissect the Sub. Monowheel. 01532_ Acquired Sub. Power Source. 01533_ System corrupted: Energy discharge (-87). 01539_ Subatomizers dissect the Sub. Optics. 01542_ Acquired Sub. Optics. 01549_ Subatomizers dissect the Sub. Monowheel. 01553_ Acquired Sub. Monowheel. 01564_ Acquired Scrap Shield Fragment. 01601_ System corrupted: Matter fused (-5). 01606_ Sub. Monowheel destroyed. Map ----- +----------------------------------------------------+ | ??????????????????????????? "?????## ##??##"" """ | | ???????????????????????????# ?????# #??#""" " | | ??????????????????????????## ????## ##### ##" | | ?????????????????????# #### ??### # | | ????????????????????? ?## ^[ | | ?????????????????????? ?# ^ | | ??????????????????????? ## ## | | ????????????????????????? ""##### | | ???????????????????????????# " #??## | | ??????????????????????????## ##???#"" | | ????????????????????????###" ###### | | ?????????????????## #### " #### | | ?????????????????# | | ?????????????????# | | ????????????????????########" | | ???????????? ?????????????# | | ???????????? ????????????# " | | ??????????? ???????????# " " | | ??????????? ??????????## " " ### | | ?????????? #?????????#### "##?# | | ??????????? #???????## ####" | | ???????????? ??????# ###### | | ?????????????? ?????## #????## | | ????????????????# ####?## #?????##" | | ????????????????# ### #?##???##" # | | ???????????????## #@ ## #????### #### | | ???????? R #??????###"# ##??? | | ???????? R ##????????#####???? | | ???????? ## ##?????????????????? | | ????????? #########??????????????????? | | ?????????## #???????????????????????????? | | ??????????# #????????????????????????????? | | ??????????# ?????????????????????????????? | | ??????????## ??????????????????????????????? | | ???????????# ???????????????????????????????? | | ???????????#"" # ???????????????????????????????? | | ?????????????" #????????????????????????????????? | | ?????????????# ??????????????????????????????????? | | ?????????????????????????????????????????????????? | | ?????????????????????????????????????????????????? | | ?????????????????????????????????????????????????? | | ?????????????????????????????????????????????????? | | ?????????????????????????????????????????????????? | | ?????????????????????????????????????????????????? | | ?????????????????????????????????????????????????? | | ?????????????????????????????????????????????????? | | ?????????????????????????????????????????????????? | | ?????????????????????????????????????????????????? | | ?????????????????????????????????????????????????? | | ?????????????????????????????????????????????????? | +----------------------------------------------------+ Best States ------------- Heat Dissipation 47 Energy Generation 10 Energy Capacity 250 Matter Stores 300 Matter Capacity 300 Sight Range 16 Robot Scan Range 14 Terrain Scan Density 10 Evasion (%) 55 Item Schematics ----------------- None Robot Schematics ------------------ None Fabricated ------------ Nothing Repaired ---------- Aluminum Leg | 86% | -10/Materials Studied --------- None Alien Tech Used ----------------- None Achievements -------------- None Challenges ------------ None Game ------ Seed BiometalGuidedPod Manual? 0 Play Time 00:17:25 Cumulative 45.9 hours Start 2025.11.03 @ 12:19:35 End 2025.11.03 @ 12:34:24 Sessions 1 Manual Loads 0 Difficulty Rogue Special Mode None Game No. 44 Rogue 44 Adventurer 0 Explorer 0 Win Type - Total 0 Types 0/0/0/0/0/0/0/0/0/0 Lore% 20 Gallery% 33 Achievement% 25 Wizard Run 0 Options --------- Layout 1 ASCII 0 Keyboard 0 Movement Numpad Keybinds 0 Fullscreen 2 Font 32/SmallcapsGlow Map View 50x35 Zoom Use 0% Tactical HUD 1 Map Filters NONE Filters NONE Steam 1 RUN: 827f0273-2fe3-40d4-b327-1788769c662a